fUSD/lending_fUSD_20240922
["ID","MTS","AMOUNT","RATE_DAILY","PERIOD"]
[338877384,1726984238463,-182.65,0.00012884,2]
[338877385,1726984238473,-150.99,0.00012884,2]
[338877386,1726984238483,-1000.0,0.00012889,2]
[338877387,1726984238492,-150.0,0.00012899,2]
[338877388,1726984238502,-170.47842334,0.000129,2]
[338877390,1726984238512,-632.94291507,0.000129,2]
[338877391,1726984238522,-345.5792785,0.000129,2]
[338877392,1726984238532,-160.78836512,0.000129,2]
[338877393,1726984238671,-198.59310146,0.000129,2]
[338877394,1726984238754,-188.3834412,0.000129,2]
[338877395,1726984238763,-540.61937978,0.000129,2]
[338877396,1726984238773,-2021.2853025,0.000129,2]
[338877397,1726984238781,-500.45799608,0.00012973,2]
[338877398,1726984238789,-163.34544994,0.00012973,2]
[338877399,1726984238797,-500.0,0.00012973,2]
[338877400,1726984238805,-500.0,0.00012973,2]
[338877401,1726984238814,-500.0,0.00012973,2]
[338877402,1726984238823,-400.04866878,0.00012973,2]
[338877403,1726984238831,-1000.0,0.00012986,2]
[338877404,1726984238839,-283231.01334217,0.00013,2]
[338877405,1726984238847,-285151.94692721,0.00013,2]
[338877416,1726984240267,-12322.06075338,0.00013,2]
[338877531,1726984242974,-500.0,0.00013,2]
[338877532,1726984242988,-3932.95846468,0.00013,2]
[338877533,1726984243031,-759.4936,0.00013,2]
[338877534,1726984243089,-56076.44893448,0.00013,2]
[338877535,1726984243202,-5305.82338663,0.00013,2]
[338877536,1726984243261,-279.92356222,0.00013,2]
[338877541,1726984245945,-16328.31836253,0.00013,2]
[338877542,1726984246164,-2049.96170416,0.00013,2]
[338877543,1726984325853,1500.0,0.0001222,2]
[338877544,1726984328098,438.45,0.00010806,2]
[338877545,1726984394285,1050.0,0.00011,2]
[338877546,1726984394400,6759.52,0.00012,2]
[338877547,1726984800449,289.98,0.00012185,2]
[338877548,1726984837621,207.11,0.00010959,2]
[338877549,1726984892305,433.37,0.00010297,2]
[338877550,1726985157646,150.0,0.00012,2]
[338877551,1726985158015,150.0,0.000112,2]
[338877552,1726985158461,275.198379,0.000104,2]
[338877589,1726985359647,252.55,0.00012095,2]
[338877592,1726985367378,172.05,0.00010959,2]
[338877597,1726985432158,-250.0,0.00012239,2]
[338877598,1726985432168,-109.16532702,0.000123,4]
[338877599,1726985432180,-190.83467298,0.000123,4]
[338877600,1726985432190,-700.0,0.000124,4]
[338877601,1726985432199,-167.23,0.00012471,2]
[338877602,1726985432210,-1000.0,0.000125,4]
[338877603,1726985432219,-564.30603758,0.00012528,2]
[338877604,1726985432230,-435.69396242,0.00012528,2]
[338877605,1726985432239,-433.37,0.0001256,2]
[338877606,1726985432248,-1400.0,0.000126,4]
[338877607,1726985432257,-614.4964,0.00012681,2]
[338877608,1726985432266,-187.05,0.00012682,2]
[338877609,1726985432275,-499.99,0.000127,2]
[338877610,1726985432285,-1700.0,0.000127,4]
[338877611,1726985432294,-250.0,0.00012712,2]
[338877612,1726985432303,-11186.81395343,0.0001278,2]
[338877613,1726985432314,-3416.88,0.0001278,2]
[338877614,1726985432325,-1914.03894294,0.0001278,2]
[338877615,1726985432335,-538.29120614,0.0001278,2]
[338877616,1726985432390,-1200.0,0.0001278,2]
[338877617,1726985432402,-114.07589749,0.0001278,2]
[338877618,1726985432411,-300.0,0.000128,4]
[338877619,1726985432421,-150.0,0.000128,2]
[338877620,1726985432432,-150.0,0.00012899,2]
[338877621,1726985432442,-623.032,0.000129,2]
[338877622,1726985432452,-177.207,0.000129,2]
[338877623,1726985432461,-170.47842334,0.000129,2]
[338877624,1726985432472,-158.23572879,0.000129,2]
[338877625,1726985432481,-172.78963925,0.000129,2]
[338877626,1726985432492,-160.78836512,0.000129,2]
[338877627,1726985432501,-3104.24931243,0.000129,2]
[338877628,1726985432510,-300.0,0.000129,4]
[338877629,1726985432522,-188.3834412,0.000129,2]
[338877630,1726985432533,-198.59310146,0.000129,2]
[338877631,1726985432541,-2021.2853025,0.000129,2]
[338877632,1726985432551,-500.45799608,0.00012973,2]
[338877633,1726985432561,-163.34544994,0.00012973,2]
[338877634,1726985432573,-500.0,0.00012973,2]
[338877635,1726985432584,-400.04866878,0.00012973,2]
[338877636,1726985432595,-500.0,0.00012973,2]
[338877637,1726985432606,-500.0,0.00012973,2]
[338877638,1726985432617,-1000.0,0.00012986,2]
[338877639,1726985432627,-10883.90977468,0.00013,2]
[338877640,1726985432639,-4458.95684898,0.00013,2]
[338877641,1726985432651,-320.66312088,0.00013,2]
[338877644,1726985438201,-457.2,0.00013,2]
[338877645,1726985438367,-6000.0,0.00013,2]
[338877646,1726985438426,-2003.3552399,0.00013,2]
[338877647,1726985438485,-6630.52938881,0.00013,2]
[338877648,1726985438597,-286060.81982845,0.00013,2]
[338877649,1726985438607,-290144.6627627,0.00013,2]
[338877669,1726985440295,-1599.79294365,0.00013,2]
[338877670,1726985440307,-604.58656335,0.00013,2]
[338877671,1726985440318,-6757.71281613,0.00013,2]
[338877672,1726985440330,-2175.0,0.00013,2]
[338877673,1726985440340,-266.56,0.00013,2]
[338877674,1726985440367,-1305.39407677,0.00013,2]
[338877675,1726985440378,-945.5,0.00013,2]
[338877772,1726985443204,-258.68957389,0.00013,2]
[338877773,1726985443217,-723.68100002,0.00013,2]
[338877774,1726985443231,-759.5749,0.00013,2]
[338877776,1726985446135,-31886.25948504,0.00013,2]
[338877777,1726985446191,-1320.45,0.00013,2]
[338877778,1726985446304,-7773.72815104,0.00013,2]
[338877783,1726985447087,1357.3726,0.00012139,2]
[338877784,1726985459504,406.61,0.00011181,2]
[338877787,1726986028511,395.12,0.0001077,2]
[338877788,1726986196733,1050.0,0.00011,2]
[338877789,1726986355129,19223.91520516,6.94e-05,2]
[338877790,1726986413153,2062.10309125,0.00012077,2]
[338877829,1726986584248,156.52,0.00010959,2]
[338877830,1726986592552,1406.16,0.00012,2]
[338877839,1726986632278,-206.49292276,0.00012504,2]
[338877840,1726986632288,-268.48,0.00012582,2]
[338877841,1726986632298,-1000.0,0.00012604,2]
[338877842,1726986632307,-7496.21131003,0.00012607,2]
[338877843,1726986632354,-10371.38293521,0.00012607,2]
[338877844,1726986632365,-2100.0,0.00012607,2]
[338877845,1726986632376,-3892.40575476,0.00012607,2]
[338877846,1726986632386,-223.66680355,0.00012622,2]
[338877847,1726986632397,-26.33319645,0.00012622,2]
[338877848,1726986632406,-248.41,0.00012696,2]
[338877849,1726986632415,-240.89,0.00012878,2]
[338877850,1726986632424,-485.40740688,0.00012899,2]
[338877851,1726986632436,-146.81269312,0.00012899,2]
[338877852,1726986632445,-250.92910798,0.00012899,2]
[338877853,1726986632456,-1029.07753147,0.00012899,2]
[338877854,1726986632467,-648.12882621,0.00012899,2]
[338877855,1726986632480,-135.83093434,0.00012899,2]
[338877856,1726986632489,-150.0,0.00012899,2]
[338877857,1726986632498,-1.42035763,0.000129,2]
[338877858,1726986632509,-641.43342479,0.000129,2]
[338877859,1726986632519,-419.82405896,0.000129,2]
[338877860,1726986632530,-861.97175862,0.000129,2]
[338877861,1726986632540,-343.4341,0.000129,2]
[338877862,1726986632549,-1521.95613748,0.000129,2]
[338877863,1726986632560,-1450.0,0.000129,2]
[338877864,1726986632572,-528.39973584,0.000129,2]
[338877865,1726986632585,-881.08675534,0.000129,2]
[338877866,1726986632608,-7868.92447134,0.000129,2]
[338877867,1726986632618,-1000.0,0.000129,2]
[338877869,1726986632627,-500.0,0.000129,2]
[338877870,1726986632636,-54883.0195,0.000129,2]
[338877872,1726986632645,-17100.6236,0.000129,2]
[338877874,1726986632654,-1000.0,0.000129,2]
[338877876,1726986632663,-171.94783731,0.000129,2]
[338877878,1726986632672,-172.78963925,0.000129,2]
[338877880,1726986632681,-857.15676816,0.000129,2]
[338877882,1726986632690,-930.4418375,0.000129,2]
[338877884,1726986632699,-340.79848929,0.000129,2]
[338877886,1726986632708,-250.0,0.00012934,2]
[338877888,1726986632717,-179.99,0.0001296,2]
[338877889,1726986632727,-500.0,0.00012973,2]
[338877890,1726986632736,-500.0,0.00012973,2]
[338877891,1726986632745,-500.0,0.00012973,2]
[338877892,1726986632754,-152.85,0.0001299,2]
[338877893,1726986632763,-499.99,0.0001299,2]
[338877894,1726986632772,-500.0,0.00012999,2]
[338877895,1726986632781,-263.90719828,0.00012999,2]
[338877896,1726986632791,-354.53141402,0.00012999,2]
[338877897,1726986632800,-13772.10030084,0.00012999,2]
[338877898,1726986632912,1866.15398473,0.00021,60]
[338877899,1726986633707,394.93,0.00010646,2]
[338877901,1726986638521,-394.93,0.0001291,2]
[338877902,1726986638531,-1536.38843121,0.00012999,2]
[338877903,1726986638596,-2827.40607705,0.00012999,2]
[338877904,1726986638607,-2035.5597036,0.00012999,2]
[338877905,1726986638734,-259.836612,0.00012999,2]
[338877906,1726986638745,-5686.33463656,0.00012999,2]
[338877907,1726986638756,-81554.66168795,0.00012999,2]
[338877908,1726986638766,-320883.37186498,0.00013,2]
[338877909,1726986638775,-173767.44903822,0.00013,2]
[338877928,1726986640327,-588.2445,0.00013,2]
[338877929,1726986640338,-39212.85223734,0.00013,2]
[338877930,1726986640350,-964.35546878,0.00013,2]
[338877931,1726986640360,-281.186742,0.00013,2]
[338877932,1726986640373,-2074.23384993,0.00013,2]
[338877933,1726986640415,-5198.16634652,0.00013,2]
[338877934,1726986640427,-666.50139961,0.00013,2]
[338877935,1726986640438,-401.71205352,0.00013,2]
[338877936,1726986640450,-3333.99104239,0.00013,2]
[338877937,1726986640505,-499.32647837,0.00013,2]
[338877938,1726986640516,-5222.08071247,0.00013,2]
[338877939,1726986640527,-5515.95915573,0.00013,2]
[338877940,1726986640537,-295.4150001,0.00013,2]
[338877941,1726986640548,-616.68531085,0.00013,2]
[338877942,1726986640563,-505.2624392,0.00013,2]
[338877943,1726986640574,-1600.65,0.00013,2]
[338877944,1726986640607,-31971.56757775,0.00013,2]
[338877947,1726986640619,-3500.0,0.00013,2]
[338878213,1726986643462,-559.0032825,0.00013,2]
[338878221,1726986643536,-1578.62846982,0.00013,2]
[338878224,1726986643548,-490.45,0.00013,2]
[338878231,1726986643612,-7832.58094494,0.00013,2]
[338878234,1726986643626,-10617.27147713,0.00013,2]
[338878236,1726986643639,-382.79859884,0.00013,2]
[338878309,1726986646281,-5884.21188928,0.00013,2]
[338878310,1726986646293,-1258.18433351,0.00013,2]
[338878311,1726986646304,-553.18452356,0.00013,2]
[338878312,1726986646316,-250.0,0.00013,2]
[338878313,1726986646327,-740.40033588,0.00013,2]
[338878314,1726986646339,-1919.57705919,0.00013,2]
[338878315,1726986646391,-585.71,0.00013,2]
[338878316,1726986646402,-9002.50504631,0.00013,2]
[338878317,1726986646414,-939.883994,0.00013,2]
[338878318,1726986646425,-1904.85498398,0.00013,2]
[338878319,1726986646436,-1185.57,0.00013,2]
[338878320,1726986646487,-4919.07120143,0.00013,2]
[338878321,1726986646498,-4056.86937231,0.00013,2]
[338878322,1726986646510,-441.89589325,0.00013,2]
[338878323,1726986646520,-453.46218221,0.00013,2]
[338878324,1726986646531,-1034.05360558,0.00013,2]
[338878325,1726986646587,-729.12371714,0.00013,2]
[338878337,1726986786946,261.84874257,0.00022,120]
[338878338,1726987104486,-4267.2865,0.00012899,2]
[338878339,1726987104508,-150.0,0.00012899,2]
[338878340,1726987104530,-300.0,0.00012899,2]
[338878341,1726987104556,-5524.3293,0.000129,2]
[338878342,1726987104576,-357.0158,0.000129,2]
[338878343,1726987104598,-1000.0,0.000129,2]
[338878344,1726987104618,-188.3834412,0.000129,2]
[338878345,1726987104640,-340.79848929,0.000129,2]
[338878346,1726987104662,-500.0,0.00012973,2]
[338878347,1726987104685,-500.0,0.00012973,2]
[338878348,1726987104707,-3000.0,0.0001299,2]
[338878349,1726987104727,-286.17813824,0.00012999,2]
[338878350,1726987104748,-3170.50828265,0.00012999,2]
[338878351,1726987104774,-34255.50004862,0.00013,2]
[338878352,1726987244991,375.68,0.00010466,2]
[338878354,1726987426975,250.0,0.00012207,2]
[338878355,1726987526563,1082.79577625,0.000122,2]
[338878360,1726987739188,196.75,0.00010959,2]
[338878375,1726987788892,229.26,0.00012215,2]
[338878385,1726987831461,-250.0,0.00012231,2]
[338878386,1726987831471,-200.0,0.000123,4]
[338878387,1726987831480,-500.0,0.000124,4]
[338878388,1726987831489,-800.0,0.000125,4]
[338878389,1726987831499,-1000.0,0.000126,4]
[338878390,1726987831508,-439.49843113,0.00012647,2]
[338878391,1726987831557,-360.50156887,0.00012647,2]
[338878392,1726987831568,-1155.97087341,0.000127,4]
[338878393,1726987831579,-144.02912659,0.000127,4]
[338878394,1726987831588,-150.0,0.00012712,2]
[338878395,1726987831600,-375.68,0.0001273,2]
[338878396,1726987831610,-176.144,0.0001274,2]
[338878397,1726987831620,-627.11687341,0.0001274,2]
[338878398,1726987831657,-13.26312659,0.0001274,2]
[338878399,1726987831668,-200.0,0.000128,4]
[338878400,1726987831677,-243.07115346,0.000129,2]
[338878401,1726987831689,-756.92884654,0.000129,2]
[338878402,1726987831698,-425.47515984,0.000129,2]
[338878403,1726987831708,-171.9478373,0.000129,2]
[338878404,1726987831716,-200.0,0.000129,4]
[338878405,1726987831726,-32.69709481,0.000129,2]
[338878412,1726987831866,-37.46316889,0.000129,2]
[338878415,1726987831880,-3065.28778418,0.000129,2]
[338878417,1726987831892,-491.54687597,0.000129,2]
[338878419,1726987831902,-227.06286172,0.000129,2]
[338878422,1726987831917,-113.73562757,0.000129,2]
[338878424,1726987831928,-499.99,0.00012973,2]
[338878426,1726987831938,-500.0,0.00012973,2]
[338878428,1726987831946,-500.0,0.00012973,2]
[338878430,1726987831955,-500.0,0.00012973,2]
[338878432,1726987831964,-222.3781,0.00012986,2]
[338878434,1726987831974,-152.93,0.0001299,2]
[338878436,1726987831985,-3008.11905105,0.00012999,2]
[338878439,1726987831994,-621.0,0.00013,2]
[338878441,1726987832003,-170264.68869864,0.00013,2]
[338878454,1726987837589,-5385.61115174,0.00013,2]
[338878455,1726987837615,-649.9596837,0.00013,2]
[338878456,1726987837626,-279606.10466033,0.00013,2]
[338878457,1726987837635,-608.0,0.00013,2]
[338878458,1726987837644,-213046.75346629,0.00013,2]
[338878459,1726987837659,-646.08003166,0.00013,2]
[338878460,1726987837672,-290.22464168,0.00013,2]
[338878461,1726987837698,-442.25,0.00013,2]
[338878462,1726987837709,-1700.0,0.00013,2]
[338878463,1726987837724,-771.26757877,0.00013,2]
[338878464,1726987837735,-494650.8209032,0.00013,2]
[338878465,1726987837748,-755.95142476,0.00013,2]
[338878466,1726987837773,-1457.81,0.00013,2]
[338878467,1726987837784,-897.58477711,0.00013,2]
[338878468,1726987837801,-2756.36521699,0.00013,2]
[338878469,1726987837950,-6181.53766942,0.00013,2]
[338878479,1726987839448,-601.77890206,0.00013,2]
[338878480,1726987839460,-2520.0,0.00013,2]
[338878488,1726987842541,-447.3484677,0.00013,2]
[338878489,1726987842562,-612.57180796,0.00013,2]
[338878490,1726987842810,-2826.0,0.00013,2]
[338878491,1726987842822,-9513.82759048,0.00013,2]
[338878492,1726987842832,-283.21700001,0.00013,2]
[338878500,1726987845501,-592.98933801,0.000128,2]
[338878501,1726987845511,-547.0,0.00013,2]
[338878502,1726987845522,-196.81066199,0.00013,2]
[338878503,1726987845534,-44760.57830407,0.00013,2]
[338878504,1726987845621,-286.63722524,0.00013,2]
[338878505,1726987845633,-3351.56897786,0.00013,2]
[338878506,1726987845652,-5173.53552002,0.00013,2]
[338878507,1726987845757,-8330.5073718,0.00013,2]
[338878509,1726987845769,-2544.6,0.00013,2]
[338878510,1726987845780,-302.7734638,0.00013,2]
[338878511,1726987879758,357.59,0.00011154,2]
[338878512,1726987920867,812.41,0.00010959,2]
[338878513,1726987974910,250.0,0.00012176,2]
[338878514,1726988020425,250.0,0.0001214,2]
[338878515,1726988240297,1000.0,0.00011888,2]
[338878516,1726988366459,292.49,0.00011878,2]
[338878517,1726988371789,171.36,0.00010959,2]
[338878518,1726988415776,612.49,0.00022,120]
[338878519,1726988433492,349.11,9.954e-05,2]
[338878520,1726988433875,349.11,0.00012217,2]
[338878521,1726988527409,250.0,0.00011864,2]
[338878522,1726988664165,250.0,0.00011856,2]
[338878533,1726988927116,1000.0,0.0001184,2]
[338878559,1726988998475,334.6,9.923e-05,2]
[338878560,1726988998830,334.6,0.00012187,2]
[338878561,1726989012228,310.53,0.00011841,2]
[338878562,1726989031661,-150.0,0.0001268,2]
[338878563,1726989031671,-404.0366,0.000127,2]
[338878564,1726989031680,-150.0,0.0001271,2]
[338878565,1726989031690,-150.0,0.00012712,2]
[338878566,1726989031699,-150.0,0.00012726,2]
[338878567,1726989031708,-150.0,0.0001273,2]
[338878568,1726989031718,-150.0,0.00012745,2]
[338878569,1726989031730,-150.0,0.00012745,2]
[338878570,1726989031740,-150.0,0.00012751,2]
[338878571,1726989031750,-150.0,0.00012754,2]
[338878572,1726989031759,-150.0,0.00012768,2]
[338878573,1726989031768,-150.99,0.00012768,2]
[338878574,1726989031778,-530.13,0.00012768,2]
[338878575,1726989031787,-150.0,0.00012773,2]
[338878576,1726989031795,-499.99,0.00012773,2]
[338878577,1726989031804,-110.60758598,0.00012797,2]
[338878578,1726989031816,-39.39241402,0.00012797,2]
[338878579,1726989031826,-1055.01,0.00012799,2]
[338878580,1726989031835,-611.37518598,0.00012799,2]
[338878581,1726989031846,-1198.16775,0.00012799,2]
[338878582,1726989031857,-392.75706402,0.00012799,2]
[338878583,1726989031867,-182.65,0.00012799,2]
[338878584,1726989031877,-150.0,0.00012799,2]
[338878585,1726989031887,-274.50858198,0.000128,2]
[338878586,1726989031900,-1777.48768149,0.000128,2]
[338878587,1726989031911,-2794.80893653,0.000128,2]
[338878588,1726989031920,-788.3727,0.000128,2]
[338878589,1726989031930,-1750.4608,0.000128,2]
[338878590,1726989031939,-5124.53221384,0.000128,2]
[338878591,1726989031950,-3890.37048616,0.000128,2]
[338878592,1726989031959,-905.3344,0.000128,2]
[338878593,1726989031969,-5317.98106535,0.000128,2]
[338878594,1726989031979,-2439.29547581,0.000128,2]
[338878595,1726989031990,-909.3594811,0.000128,2]
[338878596,1726989032000,-423.03210488,0.000128,2]
[338878597,1726989032012,-493.5770007,0.000128,2]
[338878599,1726989032024,-264.82796935,0.000128,2]
[338878600,1726989032035,-339.4901133,0.000128,2]
[338878601,1726989032047,-295.44814184,0.000128,2]
[338878602,1726989032058,-300.0,0.000128,2]
[338878603,1726989032069,-337.4740384,0.000128,2]
[338878604,1726989032078,-4150.33403679,0.000128,2]
[338878605,1726989032087,-180.05783861,0.000128,2]
[338878606,1726989032096,-150.0,0.00012806,2]
[338878607,1726989032106,-150.0,0.00012809,2]
[338878608,1726989032116,-1467.93633078,0.00012819,2]
[338878609,1726989032127,-150.0,0.00012819,2]
[338878610,1726989032137,-150.0,0.0001282,2]
[338878611,1726989032146,-150.0,0.00012825,2]
[338878612,1726989032155,-150.0,0.00012836,2]
[338878613,1726989032166,-150.0,0.00012837,2]
[338878614,1726989032175,-150.0,0.00012848,2]
[338878615,1726989032185,-150.0,0.00012868,2]
[338878616,1726989032194,-270.7366813,0.0001287,2]
[338878617,1726989032203,-232.48887692,0.00012871,2]
[338878618,1726989032212,-170.56533451,0.00012873,2]
[338878619,1726989032221,-150.0,0.00012875,2]
[338878620,1726989032231,-150.0,0.00012879,2]
[338878621,1726989032240,-208.07261695,0.00012887,2]
[338878622,1726989032249,-152.93,0.0001289,2]
[338878623,1726989032258,-21282.9882,0.000129,2]
[338878624,1726989032267,-107556.35069218,0.000129,2]
[338878625,1726989032278,-13115.76460994,0.000129,2]
[338878626,1726989032288,-712.8352503,0.000129,2]
[338878627,1726989032299,-15765.67469945,0.000129,2]
[338878628,1726989032310,-968.61574791,0.000129,2]
[338878629,1726989032321,-4885.16983812,0.000129,2]
[338878630,1726989032332,-3154.5966,0.000129,2]
[338878631,1726989032343,-404.0,0.000129,2]
[338878632,1726989032358,-349.70936002,0.000129,2]
[338878633,1726989032370,-563.69998346,0.000129,2]
[338878634,1726989036555,156.05,0.00010959,2]
[338878638,1726989037765,-28044.33900504,0.000129,2]
[338878639,1726989037777,-3955.01642289,0.000129,2]
[338878640,1726989037787,-23183.27718853,0.000129,2]
[338878642,1726989037799,-1537.30297559,0.000129,2]
[338878643,1726989037872,-542.99403541,0.000129,2]
[338878644,1726989037883,-1100.67125844,0.000129,2]
[338878645,1726989037895,-6612.53167223,0.000129,2]
[338878646,1726989037906,-1167.56978197,0.000129,2]
[338878647,1726989037923,-443.13092382,0.000129,2]
[338878648,1726989037936,-1043.64469996,0.000129,2]
[338878649,1726989037947,-36440.15185474,0.000129,2]
[338878650,1726989037956,-3497.970885,0.000129,2]
[338878651,1726989037965,-1000.0,0.000129,2]
[338878652,1726989037975,-13486.32688317,0.000129,2]
[338878653,1726989037986,-793.09569875,0.000129,2]
[338878654,1726989037996,-4246.34328365,0.000129,2]
[338878655,1726989038007,-538.72382392,0.000129,2]
[338878656,1726989038019,-3725.39043297,0.000129,2]
[338878657,1726989038030,-10057.58,0.000129,2]
[338878658,1726989038041,-3861.57904239,0.000129,2]
[338878659,1726989038053,-6373.61907584,0.000129,2]
[338878660,1726989038065,-307.07755376,0.000129,2]
[338878661,1726989038076,-19932.1079245,0.000129,2]
[338878662,1726989038087,-515.28705452,0.000129,2]
[338878663,1726989038097,-1107.58937578,0.000129,2]
[338878664,1726989038108,-575.0,0.000129,2]
[338878665,1726989038119,-469.45,0.000129,2]
[338878666,1726989038133,-2234.28306925,0.000129,2]
[338878667,1726989038146,-709.08266212,0.000129,2]
[338878668,1726989038158,-17733.91601417,0.000129,2]
[338878670,1726989038173,-4183.97458834,0.000129,2]
[338878672,1726989038184,-326.45,0.000129,2]
[338878675,1726989038195,-548.68514481,0.000129,2]
[338878677,1726989038206,-666.4,0.000129,2]
[338878679,1726989038217,-6468.44121159,0.000129,2]
[338878680,1726989038228,-146139.59716047,0.000129,2]
[338878681,1726989038237,-7500.0,0.000129,2]
[338878682,1726989038246,-185.71939874,0.000129,2]
[338878683,1726989038255,-340.38012788,0.000129,2]
[338878685,1726989038266,-173.63451502,0.000129,2]
[338878687,1726989038275,-2752.65937206,0.000129,2]
[338878689,1726989038285,-503.29517249,0.000129,2]
[338878691,1726989038294,-179.91941837,0.000129,2]
[338878692,1726989038303,-2379.91505313,0.000129,2]
[338878694,1726989038312,-150.0,0.00012905,2]
[338878695,1726989038321,-150.0,0.00012909,2]
[338878696,1726989038331,-150.0,0.00012917,2]
[338878697,1726989038340,-150.0,0.00012921,2]
[338878698,1726989038350,-150.0,0.00012945,2]
[338878699,1726989038359,-150.0,0.00012949,2]
[338878700,1726989038369,-150.0,0.00012954,2]
[338878701,1726989038378,-500.0,0.00012973,2]
[338878702,1726989038387,-500.0,0.00012973,2]
[338878703,1726989038396,-500.0,0.00012973,2]
[338878704,1726989038406,-211.99856331,0.00012973,2]
[338878705,1726989038417,-4150.33403677,0.00012978,2]
[338878706,1726989038426,-151.2602227,0.00012982,2]
[338878707,1726989038435,-500.0,0.00012999,2]
[338878708,1726989038444,-500.0,0.00012999,2]
[338878709,1726989038455,-500.0,0.00012999,2]
[338878710,1726989038466,-500.0,0.00012999,2]
[338878711,1726989038475,-204.4238557,0.00012999,2]
[338878712,1726989038486,-256.33770822,0.00012999,2]
[338878713,1726989038495,-500.0,0.00012999,2]
[338878714,1726989038504,-500.0,0.00012999,2]
[338878715,1726989038515,-500.0,0.00012999,2]
[338878716,1726989038524,-300.02,0.00012999,2]
[338878717,1726989038534,-545.0,0.00013,2]
[338878718,1726989038543,-357105.10399897,0.00013,2]
[338878719,1726989038553,-259434.70010045,0.00013,2]
[338878720,1726989038565,-4359.03,0.00013,2]
[338878721,1726989038576,-300.001004,0.00013,2]
[338878724,1726989039689,-6174.05112222,0.00013,2]
[338878725,1726989039701,-1079.800005,0.00013,2]
[338878726,1726989039713,-1272.77759084,0.00013,2]
[338878727,1726989039729,-5520.4318433,0.00013,2]
[338878728,1726989039743,-324.07327475,0.00013,2]
[338878729,1726989039849,-24104.6103854,0.00013,2]
[338878730,1726989039862,-347.78074878,0.00013,2]
[338878731,1726989039875,-2544.08778353,0.00013,2]
[338878732,1726989039889,-17049.04648691,0.00013,2]
[338878733,1726989039901,-416.47603396,0.00013,2]
[338878734,1726989039915,-322.85018007,0.00013,2]
[338878735,1726989039926,-540.18000005,0.00013,2]
[338878736,1726989039939,-277.8862953,0.00013,2]
[338878737,1726989039995,-310.14703584,0.00013,2]
[338878738,1726989040006,-503.4787228,0.00013,2]
[338878739,1726989040018,-2833.72264,0.00013,2]
[338878740,1726989040030,-4021.55597981,0.00013,2]
[338878741,1726989040043,-3593.08737091,0.00013,2]
[338878742,1726989040055,-307.46014093,0.00013,2]
[338878754,1726989042686,-311.308985,0.00013,2]
[338878755,1726989042698,-297.59077079,0.00013,2]
[338878756,1726989042709,-16513.05539984,0.00013,2]
[338878757,1726989042789,-335815.34678073,0.00013,2]
[338878758,1726989042802,-3939.92439593,0.00013,2]
[338878759,1726989042896,-465.18097096,0.00013,2]
[338878760,1726989042907,-883.32723249,0.00013,2]
[338878761,1726989042925,-6428.28499988,0.00013,2]
[338878762,1726989042936,-21934.19,0.00013,2]
[338878763,1726989042948,-27020.25076693,0.00013,2]
[338878764,1726989042963,-935.898057,0.00013,2]
[338878765,1726989042974,-1364.2199562,0.00013,2]
[338878767,1726989042986,-2694.80145435,0.00013,2]
[338878768,1726989042997,-630.18302999,0.00013,2]
[338878771,1726989045773,-500.0,0.00012973,2]
[338878772,1726989045784,-13075.73827557,0.00013,2]
[338878773,1726989045798,-1900.0,0.00013,2]
[338878774,1726989045825,-354.11893621,0.00013,2]